Cogmind - Beta 16 @@@ ROGUE MODE // 2026.01.02 @ 04:15:16 Player: LYMPH NODE JONES Result: Destroyed by G-34 Mercenary with Small Laser Performance ------------- Evolutions (1) 500 Regions Visited (3) 600 Robots Destroyed (96) 480 Value Destroyed (1435) 1435 Prototype IDs (3) 60 Alien Tech Used (0) 0 Bonus (92) 92 TOTAL SCORE: 3167 Bonus ------- High Alert Combat Kills 92 Cogmind --------- Core Integrity 0/400 Matter 289/300 Energy 279/280 System Corruption 0% Temperature Cool (6) Movement Core (300) Ox5 Location -9/Materials Parts ------- > --- POWER (1) -------- Cooled Ion Engine > --- PROPULSION (2) --- (None) > --- UTILITY (4) ------ Medium Storage Unit Improved Targeting Computer Hacking Suite > --- WEAPON (2) ------- (None) > --- INVENTORY (10) --- Targeting Computer Targeting Computer Power Shielding Improved Power Shielding Improved Light Armor Plating Heavy EM Pulse Gun Datajack Mining Laser Peak State ------------ > --- POWER ------------ Cooled Ion Engine > --- PROPULSION ------- Aluminum Leg Carbon-fiber Leg > --- UTILITY ---------- Medium Storage Unit Terrain Scan Processor Improved Targeting Computer Hacking Suite > --- WEAPON ----------- Heavy Assault Rifle Heavy Assault Rifle > --- INVENTORY -------- Targeting Computer Targeting Computer Power Shielding Improved Power Shielding Improved Light Armor Plating Heavy EM Pulse Gun Beam Rifle Datajack Mining Laser [Rating: 20] Favorites ----------- Power Light Ion Engine Engine Light Ion Engine Propulsion Aluminum Leg Leg Aluminum Leg Utility Medium Storage Unit Device Shield Generator Storage Medium Storage Unit Processor Improved Targeting Computer Hackware Hacking Suite Protection Core Shielding Weapon Beam Rifle Energy Gun Beam Rifle Ballistic Gun Improved Assault Rifle Ballistic Cannon Light Cannon Special Weapon Mining Laser Special Melee Weapon Datajack Build | -11 -10 -10 -9 ------- Run | Yrd Mat Min Mat Slots Evolved 2 | . . . 2 Power . | . . . . Propulsion . | . . . . Utility 2 | . . . 2 Weapon . | . . . . Parts Attached 47 | 6 4 9 28 Power 8 | 1 . 3 4 Engine 8 | 1 . 3 4 Core . | . . . . Reactor . | . . . . Propulsion 9 | 2 . 2 5 Treads . | . . . . Leg 9 | 2 . 2 5 Wheel . | . . . . Hover . | . . . . Flight . | . . . . Utility 16 | 1 3 1 11 Device 2 | . . 1 1 Storage 3 | 1 1 . 1 Processor 6 | . 1 . 5 Hackware 2 | . 1 . 1 Protection 3 | . . . 3 Artifact . | . . . . Weapon 14 | 2 1 3 8 Energy Gun 5 | 1 . 1 3 Energy Cannon . | . . . . Ballistic Gun 6 | 1 . 1 4 Ballistic Cannon 1 | . . 1 . Launcher . | . . . . Special Weapon 1 | . . . 1 Impact Weapon . | . . . . Slashing Weapon . | . . . . Piercing Weapon . | . . . . Special Melee Weapon 1 | . 1 . . Unidentified Prototypes 3 | . . . 3 Parts Lost 13 | . . 3 10 Power 1 | . . . 1 Propulsion 4 | . . . 4 Utility 2 | . . 1 1 Weapon 6 | . . 2 4 Highest Loss Streak 6 | . . 2 6 To Critical Strikes . | . . . . Average Backups 8 | 1 4 8 9 Power . | . 1 . . Propulsion . | . . 1 . Utility 4 | . 1 3 4 Weapon 2 | . 1 2 2 Tool/Special . | . . . . Unused Backups 7 | . 1 . 6 Power . | . . . . Propulsion . | . . . . Utility 5 | . . . 5 Weapon 2 | . 1 . 1 Tool/Special . | . . . . Average Slot Usage (%) 97 | . 99 96 97 Engine 11 | . 14 13 10 Leg 23 | . 28 27 21 Device 2 | . . 4 2 Storage 11 | . 8 14 11 Processor 14 | . 8 . 18 Hackware 9 | . 9 6 10 Energy Gun 8 | . 7 15 7 Ballistic Gun 13 | . 14 10 13 Special Melee Weapon 1 | . 6 . . Peak Build Rating 20 | 6 9 10 20 Average Rating 14 | 4 8 8 16 On Entrance 5 | . 6 9 7 Avg Prop Armor Cover (%) . | . . . . Naked Turns . | . . . . Heaviest Build 26 | 12 17 19 26 Greatest Support 25 | 20 20 20 25 Greatest Overweight (x) 6 | 2 . 1 6 Average Overweight (x) . | . . . . Largest Inventory Capacity 10 | 8 10 10 10 Average Capacity 9 | 6 7 10 10 Most Carried 10 | 3 7 10 10 Average Carried 8 | 1 4 8 9 Final Capacity 10 | 8 10 10 10 Final Carried 8 | 2 7 8 8 Class Distribution -------------------- 69% | Scavenger-Mutant 30% | Mutant Dominant Class ---------------- Mutant | -10/Materials Mutant | -10/Mines Scavenger-Mutant | -9/Materials Resources | -11 -10 -10 -9 ----------- Run | Yrd Mat Min Mat Matter Collected 1926 | 186 93 195 1452 Remotely . | . . . . Salvage Created 2881 | . 29 317 2535 Parts 199 | . 6 24 169 Haulers Intercepted 5 | . . . 5 Recyclers Shooed 5 | . . . 5 Parts Field Recycled . | . . . . Retrieved Matter . | . . . . Parts Self-Destructed . | . . . . Prevented . | . . . . Parts Restored . | . . . . Kills | -11 -10 -10 -9 ------- Run | Yrd Mat Min Mat Combat Hostiles Destroyed 41 | . . 8 33 Guns 39 | . . 6 33 Cannons 2 | . . 2 . Classes Destroyed 11 | . 1 4 6 Worker 22 | . . . 22 Builder 9 | . . 1 8 Tunneler 3 | . . . 3 Hauler 5 | . . . 5 Recycler 9 | . . 1 8 Operator 5 | . 2 . 3 Watcher 4 | . . . 4 Swarmer 22 | . . 5 17 Grunt 11 | . . 3 8 Duelist 2 | . . . 2 Sentry 6 | . . . 6 Best Kill Streak 7 | . 1 4 7 Combat Bots Only 6 | . . 3 6 Max Kills in Single Turn 2 | . 1 2 2 Gunslinging 1 | . . . 1 Exploded . | . . . . Melee . | . . . . Uniques/NPCs Destroyed . | . . . . Combat | -11 -10 -10 -9 -------- Run | Yrd Mat Min Mat Hostile Shots Fired 242 | . . 54 188 Missed 71 | . . 22 49 Hits 171 | . . 32 139 Melee 9 | . . 6 3 Projectile 162 | . . 26 136 Critical Strikes 6 | . . 1 5 Damage Taken 2161 | . . 415 1746 Core 502 | . . 100 402 Absorbed by Shields 76 | . . . 76 Core Remaining (%) 80 | 100 . 60 . Volleys Fired 346 | . 15 35 296 Largest 2 | . 2 2 2 Hottest 123 | . 60 80 123 Shots Fired 645 | . 28 62 555 Gun 633 | . 28 51 554 Cannon 11 | . . 11 . Launcher . | . . . . Special 1 | . . . 1 Kinetic 433 | . 15 33 385 Thermal 147 | . . . 147 Explosive . | . . . . Electromagnetic 65 | . 13 29 23 Robot Hit Streak 21 | . 3 4 21 Robot Miss Streak 6 | . 1 5 6 Penetration Max . | . . . . Secondary Targets 5 | . . . 5 Max Gunslinging Chain 1 | . . . 1 Shots Hit Robots 280 | . 5 26 249 Core Hits 125 | . 3 14 108 Critical Kills 2 | . 1 . 1 Critical Parts Destroyed 1 | . . . 1 Critical Strikes 12 | . 1 . 11 Burn 9 | . . . 9 Destroy 3 | . 1 . 2 Melee Attacks 5 | . 1 . 4 Impact . | . . . . Slashing . | . . . . Piercing . | . . . . Sneak Attacks 5 | . 1 . 4 Combat Hostiles . | . . . . Follow-up Attacks . | . . . . Damage Inflicted 4386 | . 44 376 3966 Guns 3951 | . 44 275 3632 Cannons 72 | . . 72 . Explosions 342 | . . 21 321 Melee . | . . . . Ramming 21 | . . 8 13 Kinetic 2827 | . 44 153 2630 Thermal 934 | . . 21 913 Explosive 280 | . . . 280 Electromagnetic 324 | . . 194 130 Impact . | . . . . Slashing . | . . . . Piercing . | . . . . Highest Corruption . | . . . . Average Corruption . | . . . . Corruption Purged . | . . . . Corruption Blocked . | . . . . Overload Shots . | . . . . Overflow Damage 8 | . . . 8 Projectiles . | . . . . Explosions 8 | . . . 8 Melee . | . . . . Knockbacks 1 | . . 1 . Impact . | . . . . Kinetic 1 | . . 1 . Secondary . | . . . . Self-Inflicted Damage 118 | . . . 118 Shots 2 | . . . 2 Rammed . | . . . . Targets Rammed 6 | . . 2 4 Kicked 6 | . . 2 4 Crushed . | . . . . Highest Temperature 279 | . . . 279 Average Temperature 46 | . . . 46 Received Heat Transfer 710 | . . 66 644 Effects 1 | . . . 1 Energy Bleed 1 | . . . 1 Siege Activations . | . . . . Martial Activations . | . . . . Shielding Activations . | . . . . Robots Disrupted . | . . . . Combat Hostiles . | . . . . Robots Corrupted . | . . . . Combat Hostiles . | . . . . Parts Fried 1 | . . . 1 Impact Corruptions . | . . . . Robots Melted . | . . . . Combat Hostiles . | . . . . Parts Melted 5 | . . . 5 Heat Transferred 2986 | . . 50 2936 Parts Sabotaged . | . . . . Parts Stolen . | . . . . Parts Stripped . | . . . . Power Chain Reactions 2 | . . 1 1 Alert | -11 -10 -10 -9 ------- Run | Yrd Mat Min Mat Maximum Alert Level 3 | . . . 3 Low Security (%) 49 | 100 100 100 34 Level 1 21 | . . . 27 Level 2 26 | . . . 34 Level 3 2 | . . . 3 Level 4 . | . . . . Level 5 . | . . . . High Security . | . . . . Max Security . | . . . . Peak Influence 785 | . 20 70 785 Initial . | . . . . Average 271 | . . 12 352 Influence Increases 1775 | . 30 185 1560 Destroy 0b10 Robot/C 820 | . . 160 660 Destroy 0b10 Robot/NC 285 | . 10 10 265 Destroy Leader 178 | . . 10 168 Trap Triggered on 0b10 20 | . 20 . . Successful Hack 1 | . . . 1 Disable Machine 255 | . . . 255 Destroy Structure 141 | . . 5 136 Lose Combat Pursuer 75 | . . . 75 Influence Decreases 1000 | . 30 185 785 Time Decay 890 | . 30 175 685 Lost Part 110 | . . 10 100 Squads Dispatched 6 | . 1 . 5 Investigation . | . . . . Extermination . | . . . . Reinforcement 5 | . 1 . 4 Assault 1 | . . . 1 Garrison . | . . . . Intercept . | . . . . Searches Triggered . | . . . . Construction Impeded 2 | . . . 2 Haulers Reinforced . | . . . . Active Scanning Responses . | . . . . Cargo Convoy Interrupts . | . . . . Stealth | -11 -10 -10 -9 --------- Run | Yrd Mat Min Mat Distress Signals 1 | . . . 1 Communications Jammed . | . . . . Distress Signals . | . . . . Times Spotted 65 | . 4 9 52 Peak Tracking Total 4 | . 1 3 4 Tactical Retreats 5 | . . . 5 Traps | -11 -10 -10 -9 ------- Run | Yrd Mat Min Mat Traps Triggered . | . . . . Indirectly . | . . . . Trap Hack Attempts . | . . . . Triggered . | . . . . Disarmed . | . . . . Reprogrammed 5 | . 5 . . Reused 2 | . 2 . . Traps Extracted . | . . . . Installed . | . . . . Triggered 2 | . 2 . . Machines | -11 -10 -10 -9 ---------- Run | Yrd Mat Min Mat Machines Disabled 18 | . . . 18 Max in Single Turn 3 | . . . 3 Machines Repaired . | . . . . Machines Dismantled . | . . . . Machines Sabotaged . | . . . . Overloaded Fab Kills . | . . . . Hacking | -11 -10 -10 -9 --------- Run | Yrd Mat Min Mat Machines Accessed 4 | . 3 . 1 Terminals 2 | . 2 . . Fabricators . | . . . . Repair Stations . | . . . . Recycling Units 1 | . 1 . . Scanalyzers 1 | . . . 1 Garrison Access . | . . . . Total Hacks 18 | . 11 . 7 Successful 14 | . 8 . 6 Failed 4 | . 3 . 1 Catastrophic . | . . . . Database Lockouts . | . . . . Manual . | . . . . Terminals 7 | . 7 . . Fabricators . | . . . . Repair Stations . | . . . . Recycling Units 4 | . 4 . . Scanalyzers 7 | . . . 7 Garrison Access . | . . . . Terminal Hacks 4 | . 4 . . Terminal Index 1 | . 1 . . Locate Traps 1 | . 1 . . Reprogram Traps 1 | . 1 . . Zone Layout 1 | . 1 . . Fabricator Hacks . | . . . . Repair Station Hacks . | . . . . Recycling Unit Hacks 4 | . 4 . . Process 1 | . 1 . . Report Inventory 1 | . 1 . . Retrieve Matter 2 | . 2 . . Scanalyzer 6 | . . . 6 Retrieve Study 6 | . . . 6 Garrison Access Hacks . | . . . . Unauthorized Hacks . | . . . . Terminals . | . . . . Fabricators . | . . . . Repair Stations . | . . . . Recycling Units . | . . . . Scanalyzers . | . . . . Garrison Access . | . . . . Data Cores Recovered 1 | . 1 . . Used 1 | . 1 . . Hacking Detections 3 | . 2 . 1 Full Trace Events 1 | . 1 . . Feedback Events . | . . . . Feedback Blocked . | . . . . Robot Schematics Acquired . | . . . . Robots Built . | . . . . Authchips . | . . . . Time . | . . . . Total Robot Build Rating . | . . . . Part Schematics Acquired . | . . . . Parts Built . | . . . . Authchips . | . . . . Time . | . . . . Total Part Build Rating . | . . . . Part Studies Acquired 5 | . . . 5 Parts Repaired . | . . . . Time . | . . . . Parts Recycled . | . . . . Recycled Matter 99 | . 99 . . Retrieved Matter 99 | . 99 . . Retrieved Components . | . . . . Parts Scanalyzed . | . . . . Part Schematics Acquired . | . . . . Parts Damaged . | . . . . Bothacking | -11 -10 -10 -9 ------------ Run | Yrd Mat Min Mat Used RIF Installer . | . . . . Robots Hacked 4 | . 1 . 3 Non-combat 4 | . 1 . 3 Combat . | . . . . Robot Hacks Applied 4 | . 1 . 3 no_distress 3 | . . . 3 find_recycling 1 | . 1 . . Relay Couplers Released . | . . . . Fabnet Peak Effective % . | . . . . Robots Rewired . | . . . . Allies Hacked . | . . . . Hacks Repelled . | . . . . Allies | -11 -10 -10 -9 -------- Run | Yrd Mat Min Mat Total Allies . | . . . . Largest Group . | . . . . Highest-Rated Group . | . . . . Highest-Rated Ally . | . . . . Total Orders . | . . . . Ally Attacks . | . . . . Total Damage . | . . . . Kills . | . . . . Allies Corrupted . | . . . . Allies Melted . | . . . . Intel | -11 -10 -10 -9 ------- Run | Yrd Mat Min Mat Active Infowar (turns) 2595 | . . . 2595 T.N.C. 2595 | . . . 2595 Robot Analysis Total . | . . . . Derelict Logs Recovered 1 | . . 1 . Drone Launches . | . . . . Drone Recoveries . | . . . . Exploration | -11 -10 -10 -9 ------------- Run | Yrd Mat Min Mat Turns Passed 6441 | 79 582 843 4937 Spaces Moved 2586 | 60 421 498 1607 Core 20 | 15 . . 5 Treads . | . . . . Legs 2566 | 45 421 498 1602 Wheels . | . . . . Hover . | . . . . Flight . | . . . . Fastest Speed 50 | 50 120 120 105 Average Speed 126 | 114 120 120 130 Slowest Speed 350 | 150 120 190 350 Overloaded Moves . | . . . . Propulsion Burnouts . | . . . . Robots Hopped . | . . . . Potential Cave-ins . | . . . . Cave-ins Triggered . | . . . . Exploration Rate (%) 48 | 4 39 82 68 Regions Visited 3 Branch Regions 1 Pre-discovered Areas 1 | . . 1 . Known Exits Taken . | . . . . Unknown Exits Taken 3 | 1 1 1 . Scrap Searched 3 | . . 3 . Spaces Dug 1 | . . . 1 Terrain Destroyed 181 | . . 5 176 Melee . | . . . . Projectile 1 | . . . 1 AOE 180 | . . 5 175 Terrain Rammed . | . . . . Walls Destroyed . | . . . . Machines Disabled . | . . . . Actions | -11 -10 -10 -9 --------- Run | Yrd Mat Min Mat Total 5108 | 68 470 682 3888 Wait 2056 | . 17 128 1911 Move 2583 | 59 420 497 1607 Hop . | . . . . Pick Up 19 | 3 7 4 5 Fast Attach 37 | 5 3 5 24 Attach 15 | 1 2 4 8 Detach 5 | . 1 1 3 Swap 5 | . . . 5 Drop 31 | . 4 6 21 Fire 346 | . 15 35 296 Melee 5 | . 1 . 4 Ram . | . . . . Kick 6 | . . 2 4 Crush . | . . . . Escape Stasis . | . . . . Rewire . | . . . . Trap . | . . . . Miscellaneous . | . . . . Route ------- -11/Scrapyard -10/Materials (discovered 2 exits: *Mat / [*Min]) -10/Mines (discovered 2 exits: *Mat x2) -9/Materials (discovered 5 exits: [*Mat x2] / [*Min x2] / *Sto) History --------- Turn | Location | Event 11 | -11/Scrapyard | Discovered new exit (range 16) 80 | -11/Scrapyard | Entered Materials 199 | -10/Materials | Discovered new exit (range 12) 313 | -10/Materials | Build established: Mutant 512 | -10/Materials | Discovered new exit (range 13) 662 | -10/Materials | Entered Mines 845 | -10/Mines | Found DCF Scrap (15 items) 937 | -10/Mines | Discovered new exit (range 8) 981 | -10/Mines | Learned location of Storage (-9) 1013 | -10/Mines | Discovered new exit (range 8) 1181 | -10/Mines | Found a damaged Exp. Sensor Array with a note attached 1266 | -10/Mines | Excavation squad dispatched 1266 | -10/Mines | A large section of the Mines collapsed 1505 | -10/Mines | Entered Materials 1505 | -9/Materials | Evolved 2 slots: Utility x2 1506 | -9/Materials | Identified exit to Storage 1561 | -9/Materials | Discovered new exit (range 16) 2034 | -9/Materials | Build established: Scavenger-Mutant 2563 | -9/Materials | Discovered new exit (range 10) 2682 | -9/Materials | Discovered new exit (range 7) 4399 | -9/Materials | Discovered new exit (range 4) 4427 | -9/Materials | Core integrity fell below 50% 4950 | -9/Materials | Build established: Mutant 5290 | -9/Materials | Build established: Scavenger-Mutant 6305 | -9/Materials | First assault squad dispatched 6415 | -9/Materials | Core integrity fell below 20% 6442 | -9/Materials | Destroyed by G-34 Mercenary with Small Laser Last Messages --------------- 06383_ M-13 Machinist unfolds itself. 06388_ K-01 Serf collects debris. 06392_ Shield Generator destroyed. 06393_ L-31 Rogue destroyed. 06396_ Critical hit (Burn: +37). 06396_ Kicked G-34 Mercenary out of the way. 06397_ Kicked G-34 Mercenary. 06399_ Kicked G-34 Mercenary out of the way. 06400_ Critical hit (Burn: +37). 06408_ K-01 Serf destroyed. 06410_ Hvy. Assault Rifle destroyed. 06416_ Beam Rifle destroyed. 06416_ G-47 Trooper destroyed. 06418_ G-34 Mercenary suffers critical hit (Destroy). 06418_ Destroyed Aluminum Leg. 06420_ Carbon-fiber Leg destroyed. 06422_ Aluminum Leg+ destroyed. 06424_ G-34 Mercenary destroyed. 06438_ Hvy. Assault Rifle destroyed. Map ----- +----------------------------------------------------+ | ???????????????????????????????????????# | | ???????????????????????????????????????# | | ???????????????????????????????????????# | | ???????????????????????????????????????# | | ???????????????????????????????????????# | | ???????????????????????????????????????# ! | | ???????????????????????????????????????# =% | | ???????????????????????????????????????# "= | | ???????????????????????????????????????# | | ???????????????????????????????????????# " | | ???????????????????????????????????????# | | ???????????????????????????????????????# =| | | ?????????????????????????????????????### ### #### | | ?????????????????????????????????????# ##!! #?# | | ?????????????#######?????????????????# ######?# | | ?????????????? #?????????????????# #??????# | | ?????????????? #?????????????????# #??????# | | ??????????????? #?????????????????# #??##### | | ???????????????# #????######???????# #??# | | ???????????????# #?#### ###????## ##?# | | ???????????????# #?# #########????# #?# | | ???????????????# #?# # !##????# #?# ## | | ???????????????# ^^#?# # =%####??# #?# # | | ???????????????#^^ ##### % * # #??# #?# # | | #####??????????# % %+% =%%[# ##??# #?# # | | #???????#####+###### @ g%# #??## ##?# # | | "" #???????# ## m # #???# #??# + | | "" #???????# """ * T # !## #???# #??# # | | "" #???????# """ #| %# ##???# #??# #[ | | #???????# """ ## =# #????# #??# # | | ! #???????# ## " # ###?## #??# #% | | ! !######### ## "R" ## # ## #??# ## | | ! ##!!!!!!# ## """ ######## #??# | | ##!!! !# ## # # #??# | | +##### ###############+### # #??# | | ### *%# ##### # + #??# ## | | | ! % % %+ # #??# #? | | ! [[ < =!* # # #??# #? | | *% = !%%= # #% #### ## | | =!! ###### ##### ##/##### % % | | %!! ###### |"!" #???######## ##### = | | =! !!##""|"!""#???????####!*=%=%= * | | !!##########???########+##!##########+### | | !!############?# #=#???????? ?? | | !!## #?# # #???????? ?? | | ######## !!## #?# # #???????"""""? | | #??????? !!## """ """ #?# # #???????"""""? | | #???????##### """ """ #?###########%###???? """"" | | #???????????# """ """ #?????????# = #???? | | #???????????# ########### % #??? | +----------------------------------------------------+ Best States ------------- Heat Dissipation 39 Energy Generation 14 Energy Capacity 280 Matter Stores 300 Matter Capacity 300 Sight Range 16 Terrain Scan Density 85 Core Shielding 20 Evasion (%) 55 Targeting Accuracy 18 Offensive Hacking 10 Item Schematics ----------------- None Robot Schematics ------------------ None Fabricated ------------ Nothing Repaired ---------- Nothing Studied --------- Datajack | -9/Materials | Hacked Assault Rifle | -9/Materials | Hacked Aluminum Leg | -9/Materials | Hacked Ion Engine | -9/Materials | Hacked Mining Laser | -9/Materials | Hacked Alien Tech Used ----------------- None Achievements -------------- Dynamic Key Hey, That's Mine! Challenges ------------ None Game ------ Seed CarbideSupercompositeWings Manual? 0 Play Time 00:53:30 Cumulative 8.2 hours Start 2026.01.02 @ 03:23:18 End 2026.01.02 @ 04:15:16 Sessions 1 Manual Loads 0 Difficulty Rogue Special Mode None Game No. 20 Rogue 20 Adventurer 0 Explorer 0 Win Type - Total 0 Types 0/0/0/0/0/0/0/0/0/0 Lore% 1 Gallery% 9 Achievement% 11 Wizard Run 0 Options --------- Layout 1 ASCII 0 Keyboard 0 Movement Arrows Keybinds 0 Fullscreen 1 Font 16/SmallcapsGlow Map View 50x40 Zoom Use 0% Tactical HUD 1 Map Filters NONE Filters NONE Steam SD RUN: fdac6441-6c83-4678-834b-b73130c61100